Workbook

Sheet Лист1
A1: Школа | C1: МАОУ СОШ №12 | F1: Утвердил: | G1: должность | H1: Директор МАОУ СОШ №12
A2: Типовое примерное меню приготавливаемых блюд | G2: фамилия | H2: Исакова Т.В.
A5: Неделя | B5: День недели | C5: Прием пищи | D5: Раздел меню | E5: Блюда | F5: Вес блюда, г | G5: Белки | H5: Жиры | I5: Углеводы | J5: Калорийность | K5: № рецептуры | L5: Цена
A6: 1 | B6: 1 | C6: Завтрак | D6: гор.блюдо | E6: Каша пшённая | F6: 200/5 | G6: 1900-01-06 | H6: 4 | I6: 25 | J6: 58 | K6: 262 | L6: 1900-01-21T10:48:00
E7: Йогурт сливочный | F7: 100 | G7: 2 | H7: 5 | I7: 17 | J7: 122 | L7: 38.95
D8: гор.напиток | E8: Сок фруктовый | F8: 200 | G8: 1 | H8: 0 | I8: 21 | J8: 94 | L8: 1900-01-18T15:36:00
D9: хлеб
D10: фрукты | E10: Яблоко | L10: 24
D13: итого | F13: =SUM(F6:F12) -> 300 | G13: =SUM(G6:G12) -> 9 | H13: 9 | I13: 63 | J13: 274 | L13: =SUM(L6:L12) -> 103.05
A14: =A6 -> 1 | B14: =B6 -> 1 | C14: Обед | D14: закуска | E14: Нарезка из свежих помидор с р.м. | F14: 60/5 | G14: 0.6 | H14: 0 | I14: 2.2 | J14: 12 | K14: 48 | L14: 12.6
D15: 1 блюдо | E15: Сыр твердый | F15: 20 | G15: 4.8 | H15: 5.8 | I15: 0 | J15: 72.6 | L15: 18.1
D16: 2 блюдо | E16: Тефтель куриный в соуче | F16: 100/5 | G16: 11.2 | H16: 28.6 | I16: 16.3 | J16: 367.9 | K16: 500 | L16: 26.52
D17: гарнир | E17: Макароны отварные | F17: 150 | G17: 6 | H17: 2 | I17: 36 | J17: 177 | K17: 519 | L17: 10.65
D18: напиток | E18: Чай с сахаром | F18: 200 | G18: 0.2 | H18: 0 | I18: 15 | J18: 58 | K18: 1008 | L18: 1.55
D19: хлеб бел. | E19: Хлеб чусовской | F19: 20 | G19: 1.46 | H19: 0.18 | I19: 9.1 | J19: 44.84 | L19: 1
D20: хлеб черн. | E20: Хлеб кр-ий с витаминной смесью | F20: 40 | G20: 2.92 | H20: 0.36 | I20: 18.2 | J20: 89.68 | L20: 2
E21: Фрукт | F21: 240 | G21: 0.6 | H21: 0 | I21: 16 | J21: 68 | L21: 30
D23: итого | F23: =SUM(F14:F22) -> 670 | G23: =SUM(G14:G22) -> 27.78 | H23: 36.94 | I23: 112.8 | J23: 890.02 | L23: =SUM(L14:L22) -> 102.42
A24: =A6 -> 1 | B24: =B6 -> 1 | C24: Итого за день: | F24: =F13+F23 -> 970 | G24: =G13+G23 -> 36.78 | H24: 45.94 | I24: 175.8 | J24: 1164.02 | L24: =L13+L23 -> 205.47
A25: 1 | B25: 2 | C25: Завтрак | D25: гор.блюдо | E25: Запеканка из творога со сгущенным молоком | F25: 150/20 | G25: 50 | H25: 53.2 | I25: 65.7 | J25: 568 | K25: 297 | L25: 29.22
E26: Бутерброд с маслом | F26: 20/20 | G26: 6 | H26: 12 | I26: 12 | J26: 150 | L26: 17
D27: гор.напиток | E27: Сок фруктовый | F27: 200 | G27: 1 | H27: 0 | I27: 21 | J27: 94 | L27: 18.65
D28: хлеб
D29: фрукты | E29: Яблоко | F29: 200 | G29: 0.6 | H29: 0 | I29: 15 | J29: 58 | L29: 38
D32: итого | F32: =SUM(F25:F31) -> 400 | G32: =SUM(G25:G31) -> 57.6 | H32: 65.2 | I32: 113.7 | J32: 870 | L32: 102.87
A33: =A25 -> 1 | B33: =B25 -> 2 | C33: Обед | D33: закуска | E33: Салат из белокачанной капусты | F33: 60/5 | G33: 0.85 | H33: 3.05 | I33: 5.41 | J33: 52.44 | K33: 81 | L33: 5.37
D34: 1 блюдо | E34: Шницель мясной | F34: 100 | G34: 19.5 | H34: 33.4 | I34: 10.2 | J34: 421 | K34: 416 | L34: 50
D35: 2 блюдо | E35: Сыр твердый | F35: 20 | G35: 4.8 | H35: 5.8 | I35: 0 | J35: 72.6 | L35: 18.1
D36: гарнир | E36: Пюре картофельное | F36: 150 | G36: 3 | H36: 8 | I36: 22 | J36: 177 | K36: 525 | L36: 5.6
D37: напиток | E37: Сок фруктовый | F37: 200 | G37: 1 | H37: 0 | I37: 21 | J37: 94 | L37: 18.65
D38: хлеб бел. | E38: Хлеб чусовской | F38: 20 | G38: 1.46 | H38: 0.18 | I38: 9.1 | J38: 44.84 | L38: 2
D39: хлеб черн. | E39: Хлеб кр-ий с витаминной смесью | F39: 40 | G39: 2.92 | H39: 0.36 | I39: 18.2 | J39: 89.68 | L39: 2
D42: итого | F42: =SUM(F33:F41) -> 530 | G42: =SUM(G33:G41) -> 33.53 | H42: 50.79 | I42: 85.91 | J42: 951.56 | L42: 101.72
A43: =A25 -> 1 | B43: =B25 -> 2 | C43: Итого за день: | F43: =F32+F42 -> 930 | G43: =G32+G42 -> 91.13 | H43: 115.99 | I43: 199.61 | J43: 1821.56 | L43: 204.59
A44: 1 | B44: 3 | C44: Завтрак | D44: гор.блюдо | E44: Греча рассыпчатая | F44: 150 | G44: 14 | H44: 6 | I44: 4 | J44: 130 | K44: 282 | L44: 16.53
E45: Салат из свеклы с р.м. | F45: 60/5 | G45: 1.44 | H45: 6.88 | I45: 8.36 | J45: 93.9 | K45: 6 | L45: 6.5
D46: гор.напиток | E46: Напиток "Витошка" | F46: 200 | G46: 1 | H46: 0 | I46: 34 | J46: 116 | L46: 18.65
D47: хлеб | L47: 2
D48: фрукты | E48: Яблоко | F48: 200 | G48: 0.6 | H48: 0 | I48: 15 | J48: 58 | L48: 38
E49: Сок фруктовый | F49: 200 | G49: 1 | H49: 0 | I49: 21 | J49: 94 | L49: 18.65
D51: итого | F51: =SUM(F44:F50) -> 750 | G51: =SUM(G44:G50) -> 18.04 | H51: 12.88 | I51: 82.36 | J51: 491.9 | L51: 100.33
A52: =A44 -> 1 | B52: =B44 -> 3 | C52: Обед | D52: закуска | E52: Салат из свеклы с р.м. | F52: 60/5 | G52: 1.44 | H52: 6.88 | I52: 8.36 | J52: 93.9 | K52: 6 | L52: 6.5
D53: 1 блюдо | E53: Суп - пюре с гренками | F53: 200/10 | G53: 6 | H53: 4 | I53: 25 | J53: 155 | L53: 11.01
D54: 2 блюдо | E54: Гуляш мясной с соусом | F54: 50/50 | G54: 9 | H54: 10.5 | I54: 42 | J54: 330 | K54: 401 | L54: 63.97
D55: гарнир | E55: Греча рассыпчатая | F55: 150 | G55: 14 | H55: 6 | I55: 4 | J55: 130 | K55: 282 | L55: 16.53
D56: хлеб бел. | E56: Хлеб чусовской | F56: 20 | G56: 1.46 | H56: 0.18 | I56: 9.1 | J56: 44.84 | L56: 1
D57: хлеб черн. | E57: Хлеб кр-ий с витаминной смесью | F57: 40 | G57: 2.92 | H57: 0.36 | I57: 18.2 | J57: 89.68 | L57: 2
E58: Яйцо 1/2 | F58: 20 | G58: 6.5 | H58: 5.5 | I58: 1 | J58: 78.5 | L58: 3.5
D60: итого | F60: =SUM(F52:F59) -> 230 | G60: =SUM(G52:G59) -> 41.32 | H60: =SUM(H52:H59) -> 33.42 | I60: =SUM(I52:I59) -> 107.66 | J60: =SUM(J52:J59) -> 921.92 | L60: =SUM(L52:L59) -> 104.51
A61: =A44 -> 1 | B61: =B44 -> 3 | C61: Итого за день: | F61: =F51+F60 -> 980 | G61: =G51+G60 -> 59.36 | H61: =H51+H60 -> 46.3 | I61: =I51+I60 -> 190.02 | J61: =J51+J60 -> 1413.82 | L61: =L51+L60 -> 204.84
A62: 1 | B62: 4 | C62: Завтрак | D62: гор.блюдо | E62: Запеканка из творога со сгущенным молоком | F62: 150/20 | G62: 50 | H62: 53.2 | I62: 65.7 | J62: 568 | K62: 297 | L62: 29.22
E63: Бутерброд с маслом | F63: 20/20 | G63: 6 | H63: 12 | I63: 12 | J63: 150 | L63: 18.4
D64: гор.напиток | E64: Сок фруктовый | F64: 200 | G64: 1 | H64: 0 | I64: 21 | J64: 94 | L64: 18.65
D65: хлеб
D66: фрукты | E66: Яблоко | F66: 200 | G66: 0.6 | H66: 0 | I66: 15 | J66: 58 | L66: 38
D69: итого | F69: =SUM(F62:F68) -> 400 | G69: =SUM(G62:G68) -> 57.6 | H69: 65.2 | I69: 113.7 | J69: 870 | L69: 104.27
A70: =A62 -> 1 | B70: =B62 -> 4 | C70: Обед | D70: закуска | E70: Салат из моркови с сахаром | F70: 60/5 | G70: 0.4 | H70: 0 | I70: 1.6 | J70: 8 | K70: 95 | L70: 16.42
D71: 1 блюдо | E71: Кура отварная (бедро) | F71: 100 | G71: 16 | H71: 9.33 | I71: 0.4 | J71: 144 | K71: 49 | L71: 38
D72: 2 блюдо | E72: Йогурт сливочный | F72: 100 | G72: 2 | H72: 5 | I72: 17 | J72: 122 | L72: 32
D73: гарнир | E73: Рис рассыпчатый | F73: 150 | G73: 3 | H73: 9 | I73: 36 | J73: 241.5 | K73: 282 | L73: 7.46
D74: напиток | E74: Компот из сухофруктов | F74: 200 | G74: 1 | H74: 0 | I74: 32 | J74: 124 | K74: 933 | L74: 6.25
D75: хлеб бел. | E75: Хлеб чусовской | F75: 20 | G75: 1.46 | H75: 0.18 | I75: 9.1 | J75: 44.84 | L75: 2
D76: хлеб черн. | E76: Хлеб кр-ий с витаминной смесью | F76: 40 | G76: 2.92 | H76: 0.36 | I76: 18.2 | J76: 89.68 | L76: 2
D79: итого | F79: =SUM(F70:F78) -> 610 | G79: =SUM(G70:G78) -> 26.78 | H79: 23.87 | I79: 114.3 | J79: 774.02 | L79: 104.13
A80: =A62 -> 1 | B80: =B62 -> 4 | C80: Итого за день: | F80: =F69+F79 -> 1010 | G80: =G69+G79 -> 84.38 | H80: 89.07 | I80: 228 | J80: 1644.02 | L80: 208.4
A81: 1 | B81: 5 | C81: Завтрак | D81: гор.блюдо | E81: Каша рисовая | F81: 200/5 | G81: 5 | H81: 3 | I81: 21 | J81: 130 | K81: 262 | L81: 23
E82: Бутерброд с маслом | F82: 20/20 | G82: 6 | H82: 12 | I82: 12 | J82: 150 | L82: 18.4
D83: гор.напиток | E83: Сок фруктовый | F83: 200 | G83: 1 | H83: 0 | I83: 21 | J83: 94 | L83: 18.65
D84: хлеб | L84: 2
D85: фрукты | E85: Яблоко | F85: 200 | G85: 0.6 | H85: 0 | I85: 15 | J85: 58 | L85: 38
D88: итого | F88: =SUM(F81:F87) -> 400 | G88: =SUM(G81:G87) -> 12.6 | H88: 15 | I88: 69 | J88: 432 | L88: 100.05
A89: =A81 -> 1 | B89: =B81 -> 5 | C89: Обед | D89: закуска | E89: Сельдь с луком и маслом | F89: 35/20/5 | G89: 4.9 | H89: 4.9 | I89: 2.52 | J89: 75 | K89: 117 | L89: 13.78
D90: 1 блюдо | E90: Рыба притушеная с овощами | F90: 80 | G90: 10.6 | H90: 1.5 | I90: 0 | J90: 55.87 | K90: 305 | L90: 33.1
D91: 2 блюдо | E91: Фрукт | F91: 120 | G91: 0.4 | H91: 0 | I91: 10 | J91: 30 | L91: 23
D92: гарнир | E92: Пюре картофельное | F92: 150 | G92: 3 | H92: 8 | I92: 22 | J92: 177 | K92: 525 | L92: 11.96
D93: напиток | E93: Сок фруктовый | F93: 200 | G93: 1 | H93: 0 | I93: 21 | J93: 94 | L93: 18.65
D94: хлеб бел. | E94: Хлеб чусовской | F94: 20 | G94: 1.46 | H94: 0.18 | I94: 9.1 | J94: 44.84 | L94: 2
D95: хлеб черн. | E95: Хлеб кр-ий с витаминной смесью | F95: 40 | G95: 2.92 | H95: 0.36 | I95: 18.2 | J95: 89.68 | L95: 2
D98: итого | F98: =SUM(F89:F97) -> 610 | G98: =SUM(G89:G97) -> 24.28 | H98: 14.94 | I98: 82.82 | J98: 566.39 | L98: 104.49
A99: =A81 -> 1 | B99: =B81 -> 5 | C99: Итого за день: | F99: =F88+F98 -> 1010 | G99: =G88+G98 -> 36.88 | H99: 29.94 | I99: 151.82 | J99: 998.39 | L99: 204.54
A100: 2 | B100: 1 | C100: Завтрак | D100: гор.блюдо | E100: Каша рисовая | F100: 200/5 | G100: 5 | H100: 3 | I100: 21 | J100: 130 | K100: 262 | L100: 23
E101: Омлет натуральный | F101: 55 | G101: 6 | H101: 9 | I101: 9 | J101: 109 | K101: 467 | L101: 11.05
D102: гор.напиток | E102: Сок фруктовый | F102: 200 | G102: 1 | H102: 0 | I102: 21 | J102: 94 | L102: 18.65
D103: хлеб | L103: 2
D104: фрукты | E104: Фрукт | F104: 120 | G104: 0.4 | H104: 0 | I104: 10 | J104: 30 | L104: 37
E105: Бутерброд с маслом | F105: 20/20 | G105: 6 | H105: 12 | I105: 12 | J105: 150 | L105: 12.45
D107: итого | F107: =SUM(F100:F106) -> 375 | G107: =SUM(G100:G106) -> 18.4 | H107: 24 | I107: 73 | J107: 513 | L107: =SUM(L100:L106) -> 104.15
A108: =A100 -> 2 | B108: =B100 -> 1 | C108: Обед | D108: закуска | E108: Салат из белокачанной капусты | F108: 60/5 | G108: 0.85 | H108: 3.05 | I108: 5.41 | J108: 52.44 | K108: 81 | L108: 3.38
D109: 1 блюдо | E109: Тефтель мясной в соусе | F109: 100/50 | G109: 11.2 | H109: 28.6 | I109: 0 | J109: 367.9 | K109: 473 | L109: 46.85
D110: 2 блюдо | E110: Сыр твердый | F110: 20 | G110: 4.8 | H110: 5.8 | I110: 0 | J110: 72.6 | L110: 18.1
D111: гарнир | E111: Макароны отварные | F111: 150 | G111: 6 | H111: 2 | I111: 36 | J111: 177 | K111: 519 | L111: 10.65
D112: напиток | E112: Сок фруктовый | F112: 200 | G112: 1 | H112: 0 | I112: 21 | J112: 94 | L112: 18.65
D113: хлеб бел. | E113: Хлеб чусовской | F113: 20 | G113: 1.46 | H113: 0.18 | I113: 9.1 | J113: 44.84 | L113: 2
D114: хлеб черн. | E114: Хлеб кр-ий с витаминной смесью | F114: 40 | G114: 2.92 | H114: 0.36 | I114: 18.2 | J114: 89.68 | L114: 2
D117: итого | F117: =SUM(F108:F116) -> 430 | G117: =SUM(G108:G116) -> 28.23 | H117: 39.99 | I117: 89.71 | J117: 898.46 | L117: =SUM(L108:L116) -> 101.63
A118: =A100 -> 2 | B118: =B100 -> 1 | C118: Итого за день: | F118: =F107+F117 -> 805 | G118: =G107+G117 -> 46.63 | H118: 63.99 | I118: 162.71 | J118: 1411.46 | L118: 205.78
A119: 2 | B119: 2 | C119: Завтрак | D119: гор.блюдо | E119: Запеканка из творога со сгущенным молоком | F119: 150/20 | G119: 50 | H119: 53.2 | I119: 65.7 | J119: 568 | K119: 297 | L119: 29.22
E120: Бутерброд с маслом | F120: 20/20 | G120: 6 | H120: 12 | I120: 12 | J120: 150 | L120: 12.45
D121: гор.напиток | E121: Сок фруктовый | F121: 200 | G121: 1 | H121: 0 | I121: 21 | J121: 94 | L121: 18.65
D122: хлеб | L122: 2
D123: фрукты | E123: Яблоко | F123: 200 | G123: 0.6 | H123: 0 | I123: 15 | J123: 58 | L123: 38
D126: итого | F126: =SUM(F119:F125) -> 400 | G126: =SUM(G119:G125) -> 57.6 | H126: 65.2 | I126: 113.7 | J126: 870 | L126: =SUM(L119:L125) -> 100.32
A127: =A119 -> 2 | B127: =B119 -> 2 | C127: Обед | D127: закуска | E127: Салат из свеклы с р.м. | F127: 60/5 | G127: 1.44 | H127: 6.88 | I127: 8.36 | J127: 93.9 | K127: 6 | L127: 6.5
D128: 1 блюдо | E128: Тефтель мясной в соусе | F128: 100/50 | G128: 11.2 | H128: 28.6 | I128: 0 | J128: 367.9 | K128: 473 | L128: 41.85
D129: 2 блюдо | E129: Яйцо 1/2 | F129: 20 | G129: 6.5 | H129: 5.5 | I129: 1 | J129: 78.5 | L129: 3.5
D130: гарнир | E130: Пюре картофельное | F130: 150 | G130: 3 | H130: 8 | I130: 22 | J130: 177 | K130: 525 | L130: 11.96
D131: напиток | E131: Сок фруктовый | F131: 200 | G131: 1 | H131: 0 | I131: 21 | J131: 94 | L131: 18.65
D132: хлеб бел. | E132: Хлеб чусовской | F132: 20 | G132: 1.46 | H132: 0.18 | I132: 9.1 | J132: 44.84 | L132: 2
D133: хлеб черн. | E133: Хлеб кр-ий с витаминной смесью | F133: 40 | G133: 2.92 | H133: 0.36 | I133: 18.2 | J133: 89.68 | L133: 2
E134: Фрукт | F134: 120 | G134: 0.4 | H134: 0 | I134: 10 | J134: 30 | L134: 18
D136: итого | F136: =SUM(F127:F135) -> 550 | G136: =SUM(G127:G135) -> 27.92 | H136: 49.52 | I136: 89.66 | J136: 975.82 | L136: =SUM(L127:L135) -> 104.46
A137: =A119 -> 2 | B137: =B119 -> 2 | C137: Итого за день: | F137: =F126+F136 -> 950 | G137: =G126+G136 -> 85.52 | H137: 114.72 | I137: 203.36 | J137: 1845.82 | L137: 204.78
A138: 2 | B138: 3 | C138: Завтрак | D138: гор.блюдо | E138: Каша пшенная на молоке | F138: 200/5 | G138: 6 | H138: 4 | I138: 25 | J138: 58 | K138: 262 | L138: 21
E139: Омлет натуральный | F139: 55 | G139: 6 | H139: 9 | I139: 9 | J139: 109 | K139: 467 | L139: 11.05
D140: гор.напиток | E140: Сок фруктовый | F140: 200 | G140: 1 | H140: 0 | I140: 21 | J140: 94 | L140: 18.65
D141: хлеб | L141: 2
D142: фрукты | E142: Яблоко | F142: 200 | G142: 0.6 | H142: 0 | I142: 15 | J142: 58 | L142: 38
E143: Бутерброд с маслом | F143: 20/20 | G143: 6 | H143: 12 | I143: 12 | J143: 150 | L143: 12.45
D145: итого | F145: =SUM(F138:F144) -> 455 | G145: =SUM(G138:G144) -> 19.6 | H145: 25 | I145: 82 | J145: 469 | L145: =SUM(L138:L144) -> 103.15
A146: =A138 -> 2 | B146: =B138 -> 3 | C146: Обед | D146: закуска | E146: Нарезка из свежих помидор с р.м. | F146: 60/5 | G146: 0.6 | H146: 0 | I146: 2.2 | J146: 12 | K146: 48 | L146: 14.37
D147: 1 блюдо | E147: Гуляш мясной с соусом | F147: 50/50 | G147: 9 | H147: 10.5 | I147: 42 | J147: 330 | K147: 401 | L147: 49.77
D148: 2 блюдо | E148: Сыр твердый | F148: 20 | G148: 4.8 | H148: 5.8 | I148: 0 | J148: 72.6 | L148: 12.1
D149: гарнир | E149: Рагу овощное | F149: 150 | G149: 3 | H149: 8 | I149: 22 | J149: 177 | K149: 542 | L149: 8.05
D150: напиток | E150: Напиток "Витошка" | F150: 200 | G150: 1 | H150: 0 | I150: 34 | J150: 116 | L150: 18.65
D151: хлеб бел. | E151: Хлеб чусовской | F151: 20 | G151: 1.46 | H151: 0.18 | I151: 9.1 | J151: 44.84
D152: хлеб черн. | E152: Хлеб кр-ий с витаминной смесью | F152: 40 | G152: 2.92 | H152: 0.36 | I152: 18.2 | J152: 89.68 | L152: 2
D155: итого | F155: =SUM(F146:F154) -> 430 | G155: =SUM(G146:G154) -> 22.78 | H155: 24.84 | I155: 127.5 | J155: 842.12 | L155: =SUM(L146:L154) -> 104.94
A156: =A138 -> 2 | B156: =B138 -> 3 | C156: Итого за день: | F156: =F145+F155 -> 885 | G156: =G145+G155 -> 42.38 | H156: 49.84 | I156: 209.5 | J156: 1311.12 | L156: 208.09
A157: 2 | B157: 4 | C157: Завтрак | D157: гор.блюдо | E157: Запеканка из творога со сгущенным молоком | F157: 150/20 | G157: 50 | H157: 53.2 | I157: 65.7 | J157: 568 | K157: 297 | L157: 29.22
E158: Бутерброд с маслом | F158: 20/20 | G158: 6 | H158: 12 | I158: 12 | J158: 150 | L158: 14
D159: гор.напиток | E159: Сок фруктовый | F159: 200 | G159: 1 | H159: 0 | I159: 21 | J159: 94 | L159: 18.65
D160: хлеб | L160: 2
D161: фрукты | E161: Яблоко | F161: 200 | G161: 0.6 | H161: 0 | I161: 15 | J161: 58 | L161: 38
D164: итого | F164: =SUM(F157:F163) -> 400 | G164: =SUM(G157:G163) -> 57.6 | H164: 65.2 | I164: 113.7 | J164: 870 | L164: =SUM(L157:L163) -> 101.87
A165: =A157 -> 2 | B165: =B157 -> 4 | C165: Обед | D165: закуска | E165: Салат из моркови с сахаром | F165: 60/5 | G165: 0.4 | H165: 0 | I165: 1.6 | J165: 8 | K165: 95 | L165: 3.12
D166: 1 блюдо | E166: Кура отварная (бедро) | F166: 100 | G166: 16 | H166: 9.33 | I166: 0.4 | J166: 144 | K166: 49 | L166: 26.52
D167: 2 блюдо | E167: Йогурт сливочный | F167: 100 | G167: 2 | H167: 5 | I167: 17 | J167: 122 | L167: 38.95
D168: гарнир | E168: Рис рассыпчатый | F168: 150 | G168: 3 | H168: 9 | I168: 36 | J168: 241.5 | K168: 282 | L168: 7.46
D169: напиток | E169: Компот из сухофруктов | F169: 200 | G169: 1 | H169: 0 | I169: 32 | J169: 124 | K169: 933 | L169: 5.26
D170: хлеб бел. | E170: Хлеб чусовской | F170: 20 | G170: 1.46 | H170: 0.18 | I170: 9.1 | J170: 44.84 | L170: 1
D171: хлеб черн. | E171: Хлеб кр-ий с витаминной смесью | F171: 40 | G171: 2.92 | H171: 0.36 | I171: 18.2 | J171: 89.68 | L171: 2
E172: Сыр твердый | F172: 10 | G172: 2.4 | H172: 2.9 | I172: 0 | J172: 36.3 | L172: 18.1
D174: итого | F174: =SUM(F165:F173) -> 620 | G174: =SUM(G165:G173) -> 29.18 | H174: 26.77 | I174: 114.3 | J174: 810.32 | L174: =SUM(L165:L173) -> 102.41
A175: =A157 -> 2 | B175: =B157 -> 4 | C175: Итого за день: | F175: =F164+F174 -> 1020 | G175: =G164+G174 -> 86.78 | H175: 91.97 | I175: 228 | J175: 1680.32 | L175: 204.28
A176: 2 | B176: 5 | C176: Завтрак | D176: гор.блюдо | E176: Каша рисовая | F176: 200/5 | G176: 5 | H176: 3 | I176: 21 | J176: 130 | K176: 262 | L176: 21.45
E177: Бутерброд с сыром | F177: 20/20 | G177: 5 | H177: 9 | I177: 9 | J177: 10 | L177: 22.4
D178: гор.напиток | E178: Сок фруктовый | F178: 200 | G178: 1 | H178: 0 | I178: 21 | J178: 94 | L178: 18.65
D179: хлеб | L179: 2
D180: фрукты
E181: Йогурт сливочный | F181: 100 | G181: 2 | H181: 5 | I181: 17 | J181: 122 | L181: 38.95
D183: итого | F183: =SUM(F176:F182) -> 300 | G183: =SUM(G176:G182) -> 13 | H183: 17 | I183: 68 | J183: 356 | L183: =SUM(L176:L182) -> 103.45
A184: =A176 -> 2 | B184: =B176 -> 5 | C184: Обед | D184: закуска | E184: Сельдь с луком и маслом | F184: 35/20/5 | G184: 4.9 | H184: 4.9 | I184: 2.52 | J184: 75 | K184: 117 | L184: 13.78
D185: 1 блюдо | E185: Котлета рыбная | F185: 100 | G185: 13.25 | H185: 1.87 | I185: =-K186429 -> 0 | J185: 169.33 | K185: 430 | L185: 32.15
D186: 2 блюдо | E186: Фрукт | F186: 120 | G186: 0.4 | H186: 0 | I186: 10 | J186: 30 | L186: 32
D187: гарнир | E187: Пюре картофельное | F187: 150 | G187: 3 | H187: 8 | I187: 22 | J187: 177 | K187: 525 | L187: 5.55
D188: напиток | E188: Сок фруктовый | F188: 200 | G188: 1 | H188: 0 | I188: 21 | J188: 94 | L188: 18.65
D189: хлеб бел.
D190: хлеб черн. | E190: Хлеб кр-ий с витаминной смесью | F190: 40 | G190: 2.92 | H190: 0.36 | I190: 18.2 | J190: 89.68 | L190: 2
D193: итого | F193: =SUM(F184:F192) -> 610 | G193: =SUM(G184:G192) -> 25.47 | H193: 15.13 | I193: 73.72 | J193: 635.01 | L193: =SUM(L184:L192) -> 104.13
A194: =A176 -> 2 | B194: =B176 -> 5 | C194: Итого за день: | F194: =F183+F193 -> 910 | G194: =G183+G193 -> 38.47 | H194: 32.13 | I194: 141.72 | J194: 991.01 | L194: 207.58
C195: Среднее значение за период: | F195: =(F24+F43+F61+F80+F99+F118+F137+F156+F175+F194)/(IF(F24=0,0,1)+IF(F43=0,0,1)+IF(F61=0,0,1)+IF(F80=0,0,1)+IF(F99=0,0,1)+IF(F118=0,0,1)+IF(F137=0,0,1)+IF(F156=0,0,1)+IF(F175=0,0,1)+IF(F194=0,0,1)) -> 947 | G195: =(G24+G43+G61+G80+G99+G118+G137+G156+G175+G194)/(IF(G24=0,0,1)+IF(G43=0,0,1)+IF(G61=0,0,1)+IF(G80=0,0,1)+IF(G99=0,0,1)+IF(G118=0,0,1)+IF(G137=0,0,1)+IF(G156=0,0,1)+IF(G175=0,0,1)+IF(G194=0,0,1)) -> 60.831 | H195: =(H24+H43+H61+H80+H99+H118+H137+H156+H175+H194)/(IF(H24=0,0,1)+IF(H43=0,0,1)+IF(H61=0,0,1)+IF(H80=0,0,1)+IF(H99=0,0,1)+IF(H118=0,0,1)+IF(H137=0,0,1)+IF(H156=0,0,1)+IF(H175=0,0,1)+IF(H194=0,0,1)) -> 67.989 | I195: =(I24+I43+I61+I80+I99+I118+I137+I156+I175+I194)/(IF(I24=0,0,1)+IF(I43=0,0,1)+IF(I61=0,0,1)+IF(I80=0,0,1)+IF(I99=0,0,1)+IF(I118=0,0,1)+IF(I137=0,0,1)+IF(I156=0,0,1)+IF(I175=0,0,1)+IF(I194=0,0,1)) -> 189.054 | J195: =(J24+J43+J61+J80+J99+J118+J137+J156+J175+J194)/(IF(J24=0,0,1)+IF(J43=0,0,1)+IF(J61=0,0,1)+IF(J80=0,0,1)+IF(J99=0,0,1)+IF(J118=0,0,1)+IF(J137=0,0,1)+IF(J156=0,0,1)+IF(J175=0,0,1)+IF(J194=0,0,1)) -> 1428.154 | L195: =(L24+L43+L61+L80+L99+L118+L137+L156+L175+L194)/(IF(L24=0,0,1)+IF(L43=0,0,1)+IF(L61=0,0,1)+IF(L80=0,0,1)+IF(L99=0,0,1)+IF(L118=0,0,1)+IF(L137=0,0,1)+IF(L156=0,0,1)+IF(L175=0,0,1)+IF(L194=0,0,1)) -> 205.835
